[Event "93rd FRA-ch Acession 2018"]
[Site "Nimes"]
[Date "2018.08.19"]
[Round "2"]
[White "Barseghyan, Harutyun"]
[Black "Calistri, Tristan"]
[Result "1-0"]
[ECO "E98"]
[WhiteElo "2474"]
[BlackElo "2303"]
[Annotator "ChessBase"]
[PlyCount "52"]
[EventDate "2018.08.18"]
[EventType "tourn"]
[EventCountry "FRA"]
[SourceTitle "playchess.com"]
[Source "ChessBase"]
[SourceQuality "1"]
[TimeControl "40/5400+30:1800+30"]

1. d4 {[%emt 0:00:00]} Nf6 {[%emt 0:08:13]} 2. c4 {[%emt 0:00:00]} g6 {[%emt 0:00:12]} 3. Nc3 {[%emt 0:00:00]} Bg7 {[%emt 0:00:06]} 4. e4 {[%emt 0:00:00]} d6 {[%emt 0:00:05]} 5. Nf3 {[%emt 0:00:00]} O-O {[%emt 0:00:04]} 6. Be2 {[%emt 0:00:00]} e5 {[%emt 0:00:18]} 7. O-O {[%emt 0:00:00]} Nc6 {[%emt 0:00:14]} 8. d5 {[%emt 0:00:00]} Ne7 {[%emt 0:00:07]} 9. Ne1 {[%emt 0:00:02]} Nd7 {[%emt 0:00:32]} 10. Be3 {[%emt 0:00:24]} f5 {[%emt 0:00:08]} 11. f3 {[%emt 0:00:01]} f4 {[%emt 0:00:07]} 12. Bf2 {[%emt 0:00:02]} g5 {[%emt 0:00:04]} 13. Rc1 {[%emt 0:00:02]} Ng6 {[%emt 0:13:04]} 14. c5 {[%emt 0:00:27]} Nxc5 {[%emt 0:00:03]} 15. b4 {[%emt 0:00:05]} Na6 {[%emt 0:00:02]} 16. Nb5 {[%emt 0:00:05]} h5 {[%emt 0:00:44]} 17. Nxa7 {[%emt 0:00:10]} Bd7 {[%emt 0:00:03]} 18. Bxa6 {[%emt 0:00:19]} bxa6 {[%emt 0:01:08]} 19. Qc2 {[%emt 0:00:02]} Rf7 {[%emt 0:05:38]} 20. Qxc7 {[%emt 0:00:35]} Qf8 {[%emt 0:02:48]} 21. Qb6 {[%emt 0:00:43]} g4 {[%emt 0:05:56]} 22. Qxa6 {[%emt 0:00:07]} g3 {[%emt 0:00:12]} 23. Bb6 {[%emt 0:00:06]} Qe7 {[%emt 0:04:04]} 24. h3 {[%emt 0:26:37]} Bb5 {[%emt 0:10:10]} 25. Qxb5 {[%emt 0:02:59]} Rxa7 {[%emt 0:00:55]} 26. a4 {[%emt 0:00:16]} Qf8 1-0

[Event "93rd FRA-ch Acession 2018"]
[Site "Nimes"]
[Date "2018.08.19"]
[Round "2"]
[White "Vidal, Llewellyn"]
[Black "Velten, Paul"]
[Result "0-1"]
[ECO "A45"]
[WhiteElo "2304"]
[BlackElo "2464"]
[Annotator "RC"]
[PlyCount "64"]
[EventDate "2018.08.18"]
[EventType "tourn"]
[EventCountry "FRA"]
[SourceTitle "playchess.com"]
[Source "ChessBase"]
[SourceQuality "1"]
[TimeControl "40/5400+30:1800+30"]

1. d4 {[%emt 0:00:00]} Nf6 {[%emt 0:01:03]} 2. Bg5 {[%emt 0:00:00]} e6 {[%emt 0:06:43]} 3. e4 {[%emt 0:00:03]} h6 {[%emt 0:00:23]} 4. Bxf6 {[%emt 0:00:04]} Qxf6 {[%emt 0:00:27]} 5. Nc3 {[%emt 0:00:43]} a6 {[%emt 0:01:12]} 6. Nf3 {[%emt 0:05:02]} d6 {[%emt 0:04:15]} 7. a4 {[%emt 0:03:48]} Nd7 {[%emt 0:02:28]} 8. Bc4 {[%emt 0:00:47]} g6 {[%emt 0:09:30]} 9. O-O {[%emt 0:02:52]} Bg7 {[%emt 0:00:21]} 10. Re1 {[%emt 0:02:50]} e5 {[%emt 0:02:38]} 11. dxe5 {[%emt 0:04:15]} dxe5 {[%emt 0:01:50]} 12. Nd5 {[%emt 0:09:15]} Qd8 {[%emt 0:00:50]} 13. a5 {[%emt 0:00:25]} O-O {[%emt 0:00:20]} 14. c3 {[%emt 0:02:03]} c6 {[%emt 0:05:40]} 15. Ne3 {[%emt 0:01:06]} Qe7 {[%emt 0:00:51]} 16. Qc2 {[%emt 0:01:46]} Nf6 {[%emt 0:01:22]} 17. h3 {[%emt 0:07:16]} Nh5 {[%emt 0:00:44]} 18. Rad1 {[%emt 0:09:23]} Nf4 {[%emt 0:02:22]} 19. b4 {[%emt 0:07:43]} Qf6 {[%emt 0:03:13]} 20. Nh2 {[%emt 0:04:53]} h5 {[%emt 0:00:34]} 21. Bf1 {[%emt 0:01:36]} Be6 {[%emt 0:01:09]} 22. c4 {[%emt 0:02:37]} Rfd8 {[%emt 0:04:23]} 23. c5 {[%emt 0:06:12]} Rd4 {[%emt 0:01:12]} 24. Rxd4 {[%emt 0:01:01]} exd4 {[%emt 0:00:11]} 25. Nc4 {[%emt 0:01:13]} d3 {[%emt 0:01:36]} 26. Qc1 {[%emt 0:20:28]} Qc3 {[%emt 0:02:11]} 27. Nd2 {[%emt 0:03:25]} Rd8 {[%emt 0:04:03]} 28. Nhf3 {[%emt 0:00:16]} Qxb4 {[%emt 0:01:45]} 29. e5 {[%emt 0:00:25]} Bh6 {[%emt 0:02:01]} 30. h4 {[%emt 0:02:40]} Bf5 {[%emt 0:03:47]} 31. Qb1 {[%emt 0:00:48]} Ne2+ {[%emt 0:02:51]} 32. Kh1 {[%emt 0:00:31]} Bxd2 {[%emt 0:00:15]} 0-1

[Event "93rd FRA-ch Acession 2018"]
[Site "Nimes"]
[Date "2018.08.20"]
[Round "3"]
[White "Bailet, Pierre"]
[Black "Joie, Sebastien"]
[Result "1/2-1/2"]
[ECO "C42"]
[WhiteElo "2496"]
[BlackElo "2424"]
[Annotator "ChessBase"]
[PlyCount "79"]
[EventDate "2018.08.18"]
[EventType "tourn"]
[EventCountry "FRA"]
[SourceTitle "playchess.com"]
[Source "ChessBase"]
[SourceQuality "1"]
[TimeControl "40/5400+30:1800+30"]

1. e4 {[%emt 0:00:00]} e5 {[%emt 0:00:00]} 2. Nf3 {[%emt 0:00:00]} Nf6 {[%emt 0:00:00]} 3. Nxe5 {[%emt 0:00:34]} d6 {[%emt 0:00:00]} 4. Nf3 {[%emt 0:00:10]} Nxe4 {[%emt 0:00:00]} 5. d4 {[%emt 0:00:34]} d5 {[%emt 0:00:01]} 6. Bd3 {[%emt 0:00:16]} Bd6 {[%emt 0:00:39]} 7. O-O {[%emt 0:03:36]} O-O {[%emt 0:00:09]} 8. c4 {[%emt 0:01:12]} c6 {[%emt 0:00:11]} 9. cxd5 {[%emt 0:02:56]} cxd5 {[%emt 0:00:09]} 10. Nc3 {[%emt 0:00:12]} Nxc3 {[%emt 0:00:11]} 11. bxc3 {[%emt 0:00:08]} Bg4 {[%emt 0:00:05]} 12. h3 {[%emt 0:01:27]} Bh5 {[%emt 0:00:07]} 13. Rb1 {[%emt 0:00:17]} b6 {[%emt 0:00:43]} 14. Re1 {[%emt 0:19:45]} Nc6 {[%emt 0:04:42]} 15. g3 {[%emt 0:05:34]} Bg6 {[%emt 0:17:00]} 16. Bxg6 {[%emt 0:05:05]} hxg6 {[%emt 0:08:08]} 17. Qb3 {[%emt 0:07:43]} Ne7 {[%emt 0:15:36]} 18. Rb2 {[%emt 0:09:36]} Rc8 {[%emt 0:06:56]} 19. Rbe2 {[%emt 0:01:18]} Rc4 {[%emt 0:02:47]} 20. Ba3 {[%emt 0:04:08]} Bxa3 {[%emt 0:09:41]} 21. Qxa3 {[%emt 0:00:10]} Nf5 {[%emt 0:02:24]} 22. Kg2 {[%emt 0:08:02]} Qc8 {[%emt 0:06:58]} 23. Qxa7 {[%emt 0:07:10]} Rxc3 {[%emt 0:00:12]} 24. Ng5 {[%emt 0:03:07]} Qc7 {[%emt 0:04:08]} 25. Qxc7 {[%emt 0:01:39]} Rxc7 {[%emt 0:00:01]} 26. Nf3 {[%emt 0:00:35]} Rc4 {[%emt 0:07:18]} 27. Ne5 {[%emt 0:02:42]} Rc7 {[%emt 0:00:01]} 28. Nf3 {[%emt 0:02:08]} Rc4 {[%emt 0:00:07]} 29. Ne5 {[%emt 0:00:28]} Rc7 {[%emt 0:00:03]} 30. Rb2 {[%emt 0:01:07]} Nxd4 {[%emt 0:02:30]} 31. Rd1 {[%emt 0:00:34]} Rc2 {[%emt 0:03:47]} 32. Rxc2 {[%emt 0:01:09]} Nxc2 {[%emt 0:00:02]} 33. Rxd5 {[%emt 0:00:23]} Re8 {[%emt 0:04:52]} 34. Nc4 {[%emt 0:01:49]} Nb4 {[%emt 0:00:21]} 35. Rd2 {[%emt 0:02:10]} b5 {[%emt 0:02:37]} 36. Ne3 {[%emt 0:00:11]} Ra8 {[%emt 0:00:46]} 37. Rb2 {[%emt 0:01:23]} Nxa2 {[%emt 0:00:16]} 38. Rxb5 {[%emt 0:00:06]} Nc3 {[%emt 0:00:31]} 39. Rb2 {[%emt 0:00:17]} Rd8 {[%emt 0:00:31]} 40. Rc2 {[%emt 0:00:05]} 1/2-1/2

[Event "93rd FRA-ch Acession 2018"]
[Site "Nimes"]
[Date "2018.08.20"]
[Round "3"]
[White "Monroy, Charles"]
[Black "Riff, Jean-Noel"]
[Result "1/2-1/2"]
[ECO "D56"]
[WhiteElo "2428"]
[BlackElo "2510"]
[Annotator "ChessBase"]
[PlyCount "80"]
[EventDate "2018.08.18"]
[EventType "tourn"]
[EventCountry "FRA"]
[SourceTitle "playchess.com"]
[Source "ChessBase"]
[SourceQuality "1"]
[TimeControl "40/5400+30:1800+30"]

1. Nf3 {[%emt 0:00:00]} d5 {[%emt 0:00:00]} 2. d4 {[%emt 0:00:08]} Nf6 {[%emt 0:00:00]} 3. c4 {[%emt 0:00:08]} e6 {[%emt 0:00:00]} 4. Nc3 {[%emt 0:00:24]} Be7 {[%emt 0:00:00]} 5. Bg5 {[%emt 0:01:16]} h6 {[%emt 0:00:07]} 6. Bh4 {[%emt 0:00:36]} O-O {[%emt 0:00:07]} 7. e3 {[%emt 0:00:29]} Nbd7 {[%emt 0:00:02]} 8. Rc1 {[%emt 0:02:23]} c5 {[%emt 0:01:12]} 9. cxd5 {[%emt 0:01:33]} Nxd5 {[%emt 0:00:39]} 10. Bxe7 {[%emt 0:00:16]} Nxe7 {[%emt 0:00:04]} 11. Bd3 {[%emt 0:15:29]} cxd4 {[%emt 0:07:15]} 12. Nxd4 {[%emt 0:03:43]} Nf6 {[%emt 0:16:32]} 13. O-O {[%emt 0:05:38]} e5 {[%emt 0:09:05]} 14. Nf3 {[%emt 0:10:18]} Bg4 {[%emt 0:00:40]} 15. Bb1 {[%emt 0:00:46]} Qa5 {[%emt 0:11:17]} 16. Qa4 {[%emt 0:04:09]} Qxa4 {[%emt 0:01:11]} 17. Nxa4 {[%emt 0:00:02]} Bxf3 {[%emt 0:00:11]} 18. gxf3 {[%emt 0:00:11]} Rac8 {[%emt 0:00:35]} 19. Nc5 {[%emt 0:01:50]} b6 {[%emt 0:00:35]} 20. Ne4 {[%emt 0:00:24]} Nxe4 {[%emt 0:00:18]} 21. Bxe4 {[%emt 0:00:18]} Rxc1 {[%emt 0:08:40]} 22. Rxc1 {[%emt 0:00:30]} Rc8 {[%emt 0:00:02]} 23. Rd1 {[%emt 0:05:32]} f5 {[%emt 0:00:05]} 24. Bb1 {[%emt 0:00:10]} Kf7 {[%emt 0:00:46]} 25. a3 {[%emt 0:00:56]} Ke8 {[%emt 0:00:58]} 26. Kf1 {[%emt 0:11:37]} Rd8 {[%emt 0:01:37]} 27. Bd3 {[%emt 0:00:10]} Rd5 {[%emt 0:06:10]} 28. Ke2 {[%emt 0:01:05]} Kd8 {[%emt 0:00:34]} 29. Rg1 {[%emt 0:02:06]} g6 {[%emt 0:00:15]} 30. h4 {[%emt 0:01:18]} Rd6 {[%emt 0:00:07]} 31. Rc1 {[%emt 0:02:19]} Rd5 {[%emt 0:03:09]} 32. Rc4 {[%emt 0:02:40]} Rc5 {[%emt 0:02:32]} 33. Rxc5 {[%emt 0:09:58]} bxc5 {[%emt 0:01:34]} 34. Bc4 {[%emt 0:00:11]} Nc8 {[%emt 0:04:27]} 35. Bf7 {[%emt 0:03:22]} g5 {[%emt 0:00:33]} 36. hxg5 {[%emt 0:00:11]} hxg5 {[%emt 0:00:05]} 37. Be6 {[%emt 0:00:54]} Nd6 {[%emt 0:00:06]} 38. Kd3 {[%emt 0:01:40]} Kc7 {[%emt 0:01:08]} 39. Bd5 {[%emt 0:00:11]} Kb6 {[%emt 0:00:10]} 40. Kc3 {[%emt 0:00:17]} a5 {[%emt 0:00:18]} 1/2-1/2

[Event "93rd FRA-ch Acession 2018"]
[Site "Nimes"]
[Date "2018.08.23"]
[Round "6"]
[White "Fruchard, Cyrille"]
[Black "Bailet, Pierre"]
[Result "0-1"]
[ECO "E46"]
[WhiteElo "2240"]
[BlackElo "2496"]
[Annotator "RC"]
[PlyCount "64"]
[EventDate "2018.08.18"]
[EventType "tourn"]
[EventCountry "FRA"]
[SourceTitle "playchess.com"]
[Source "ChessBase"]
[SourceQuality "1"]
[TimeControl "40/5400+30:1800+30"]

1. d4 {[%emt 0:00:00]} Nf6 {[%emt 0:00:00]} 2. c4 {[%emt 0:00:00]} e6 {[%emt 0:00:28]} 3. Nc3 {[%emt 0:00:00]} Bb4 {[%emt 0:00:14]} 4. e3 {[%emt 0:00:00]} O-O {[%emt 0:00:43]} 5. Nge2 {[%emt 0:00:03]} c6 {[%emt 0:00:56]} 6. a3 {[%emt 0:00:33]} Ba5 {[%emt 0:00:10]} 7. b4 {[%emt 0:04:11]} Bc7 {[%emt 0:00:13]} 8. e4 {[%emt 0:01:17]} d6 {[%emt 0:01:33]} 9. Ng3 {[%emt 0:02:29]} e5 {[%emt 0:00:24]} 10. d5 {[%emt 0:03:02]} a5 {[%emt 0:04:00]} 11. Bd2 {[%emt 0:04:57]} Bb6 {[%emt 0:13:27]} 12. Be2 {[%emt 0:02:39]} Bd4 {[%emt 0:01:19]} 13. O-O {[%emt 0:02:47]} axb4 {[%emt 0:02:22]} 14. axb4 {[%emt 0:00:37]} Rxa1 {[%emt 0:00:09]} 15. Qxa1 {[%emt 0:00:07]} Na6 {[%emt 0:02:49]} 16. Qb1 {[%emt 0:10:50]} cxd5 {[%emt 0:05:57]} 17. Nb5 {[%emt 0:07:13]} Bb6 {[%emt 0:12:23]} 18. exd5 {[%emt 0:04:13]} Nc7 {[%emt 0:00:31]} 19. Nxc7 {[%emt 0:02:40]} Bxc7 {[%emt 0:04:29]} 20. f4 {[%emt 0:08:17]} Bb6+ {[%emt 0:02:38]} 21. Kh1 {[%emt 0:00:54]} Bd4 {[%emt 0:00:39]} 22. Nf5 {[%emt 0:07:00]} Bxf5 {[%emt 0:02:48]} 23. Qxf5 {[%emt 0:00:06]} e4 {[%emt 0:04:04]} 24. g4 {[%emt 0:06:25]} g6 {[%emt 0:06:37]} 25. Qg5 {[%emt 0:00:14]} Qa8 {[%emt 0:04:11]} 26. f5 {[%emt 0:03:30]} Qa2 {[%emt 0:00:26]} 27. Qf4 {[%emt 0:03:04]} Be5 {[%emt 0:02:41]} 28. Qg5 {[%emt 0:02:54]} Ra8 {[%emt 0:10:08]} 29. Rf2 {[%emt 0:02:30]} Ra3 {[%emt 0:12:27]} 30. Be3 {[%emt 0:05:30]} Qb3 {[%emt 0:00:19]} 31. Bf4 {[%emt 0:03:05]} e3 {[%emt 0:01:10]} 32. Rf1 {[%emt 0:00:48]} Qc2 {[%emt 0:00:49]} 0-1

[Event "93rd FRA-ch Acession 2018"]
[Site "Nimes"]
[Date "2018.08.26"]
[Round "9"]
[White "Duboue, Peio"]
[Black "Di Nicolantonio, Lucas"]
[Result "1-0"]
[ECO "C26"]
[WhiteElo "2390"]
[BlackElo "2379"]
[Annotator "ChessBase"]
[PlyCount "45"]
[EventDate "2018.08.18"]
[EventType "tourn"]
[EventCountry "FRA"]
[SourceTitle "playchess.com"]
[Source "ChessBase"]
[SourceQuality "1"]
[TimeControl "40/5400+30:1800+30"]

1. e4 {[%emt 0:00:00]} e5 {[%emt 0:00:00]} 2. Nc3 {[%emt 0:05:18]} Nf6 {[%emt 0:00:47]} 3. g3 {[%emt 0:00:21]} d5 {[%emt 0:08:49]} 4. exd5 {[%emt 0:00:03]} Nxd5 {[%emt 0:00:05]} 5. Bg2 {[%emt 0:00:05]} Nxc3 {[%emt 0:16:41]} 6. bxc3 {[%emt 0:00:58]} Nc6 {[%emt 0:03:16]} 7. Ne2 {[%emt 0:02:09]} Bc5 {[%emt 0:04:36]} 8. O-O {[%emt 0:01:59]} O-O {[%emt 0:00:07]} 9. Rb1 {[%emt 0:06:45]} Bb6 {[%emt 0:03:09]} 10. d3 {[%emt 0:02:01]} f5 {[%emt 0:09:59]} 11. Kh1 {[%emt 0:02:56]} f4 {[%emt 0:03:35]} 12. gxf4 {[%emt 0:06:38]} Qh4 {[%emt 0:02:49]} 13. fxe5 {[%emt 0:00:45]} Bxf2 {[%emt 0:14:17]} 14. d4 {[%emt 0:10:29]} Bg4 {[%emt 0:05:49]} 15. Qd3 {[%emt 0:01:39]} Bf5 {[%emt 0:06:15]} 16. Qc4+ {[%emt 0:05:29]} Kh8 {[%emt 0:00:20]} 17. Bf4 {[%emt 0:00:41]} Rae8 {[%emt 0:10:34]} 18. Bg3 {[%emt 0:00:00]} Bxg3 {[%emt 0:00:08]} 19. Nxg3 {[%emt 0:07:18]} Nxe5 {[%emt 0:06:35]} 20. Nxf5 {[%emt 0:01:50]} Rxf5 {[%emt 0:00:14]} 21. Qe2 {[%emt 0:02:52]} Rh5 {[%emt 0:00:21]} 22. h3 {[%emt 0:02:09]} Qg4 {[%emt 0:00:25]} 23. Qxe5 {[%emt 0:01:46]} 1-0